[Event "Schack-SM 2024: Mastarklassen"]
[Site "Fortnox Arena, Hejaregatan 5, Vaxjo, Sweden"]
[Date "2024.07.06"]
[Round "8.1"]
[White "Ljung, Harald"]
[Black "Mashhadi, Peyman"]
[Result "1-0"]
[TimeControl "90 minutes for 40 moves + 30 minutes for the rest of the game + 30 seconds per move from move one."]
[WhiteElo "2101"]
[BlackElo "2116"]

1. c4 {[%clk 01:30:58]} {[%emt 00:00:02]} Nf6 {[%clk 01:30:30]} {[%emt
00:00:29]} 2. Nc3 {[%clk 01:31:23]} {[%emt 00:00:05]} g6 {[%clk 01:30:35]}
{[%emt 00:00:25]} 3. g3 {[%clk 01:31:49]} {[%emt 00:00:05]} Bg7 {[%clk
01:30:54]} {[%emt 00:00:10]} 4. Bg2 {[%clk 01:32:13]} {[%emt 00:00:06]} O-O
{[%clk 01:30:55]} {[%emt 00:00:28]} 5. d3 {[%clk 01:32:39]} {[%emt 00:00:05]}
d6 {[%clk 01:29:06]} {[%emt 00:02:18]} 6. Rb1 {[%clk 01:31:55]} {[%emt
00:01:15]} a5 {[%clk 01:26:12]} {[%emt 00:03:23]} 7. a3 {[%clk 01:30:44]}
{[%emt 00:01:41]} Nc6 {[%clk 01:20:19]} {[%emt 00:06:23]} 8. b4 {[%clk
01:28:00]} {[%emt 00:03:16]} axb4 {[%clk 01:20:06]} {[%emt 00:00:41]} 9. axb4
{[%clk 01:28:25]} {[%emt 00:00:05]} e5 {[%clk 01:13:21]} {[%emt 00:07:15]} 10.
e3 {[%clk 01:21:23]} {[%emt 00:07:32]} Bg4 {[%clk 01:08:54]} {[%emt 00:04:57]}
11. Qb3 {[%emt 00:03:20]} Qc8 {[%clk 01:04:42]} {[%emt 00:02:17]} 12. Bb2
{[%clk 01:11:08]} {[%emt 00:06:56]} Bf5 13. Nb5 {[%emt 00:14:34]} Re8 {[%emt
00:06:48]} 14. e4 {[%clk 01:05:12]} {[%emt 00:01:16]} Bd7 {[%clk 00:50:55]}
{[%emt 00:02:58]} 15. Ne2 {[%clk 01:03:18]} {[%emt 00:02:23]} h5 {[%clk
00:49:50]} {[%emt 00:01:36]} 16. h4 {[%clk 00:55:04]} {[%emt 00:08:46]} Nd8
{[%clk 00:43:57]} {[%emt 00:06:22]} 17. O-O {[%clk 00:52:39]} {[%emt 00:02:54]}
Qb8 {[%clk 00:41:55]} {[%emt 00:02:33]} 18. Ra1 {[%clk 00:50:48]} {[%emt
00:02:20]} Rxa1 {[%clk 00:41:04]} {[%emt 00:01:21]} 19. Rxa1 {[%clk 00:51:11]}
{[%emt 00:00:08]} Bg4 {[%clk 00:38:48]} {[%emt 00:02:45]} 20. Qc2 {[%clk
00:41:50]} {[%emt 00:09:52]} c6 {[%clk 00:35:22]} {[%emt 00:03:55]} 21. Nbc3
{[%clk 00:41:53]} {[%emt 00:00:27]} Nd7 {[%clk 00:34:04]} {[%emt 00:01:47]} 22.
Qa4 {[%clk 00:38:23]} {[%emt 00:03:59]} Bh6 {[%clk 00:30:57]} {[%emt 00:03:37]}
23. Nc1 {[%clk 00:32:19]} {[%emt 00:06:33]} g5 {[%clk 00:28:12]} {[%emt
00:03:17]} 24. hxg5 {[%clk 00:31:35]} {[%emt 00:01:13]} Bxg5 {[%clk 00:28:34]}
{[%emt 00:00:09]} 25. Qa8 {[%clk 00:25:48]} {[%emt 00:06:17]} Qc7 {[%clk
00:28:15]} {[%emt 00:00:49]} 26. Nb3 {[%clk 00:25:02]} {[%emt 00:01:17]} h4
{[%clk 00:25:47]} {[%emt 00:02:57]} 27. gxh4 {[%clk 00:25:01]} {[%emt
00:00:31]} Bxh4 {[%clk 00:25:56]} {[%emt 00:00:20]} 28. Qa5 {[%clk 00:25:14]}
{[%emt 00:00:17]} Qc8 {[%clk 00:25:14]} {[%emt 00:01:11]} 29. f3 {[%clk
00:19:41]} {[%emt 00:06:05]} Be6 {[%clk 00:20:48]} {[%emt 00:04:56]} 30. Kf1
{[%clk 00:18:21]} {[%emt 00:01:50]} Nf6 {[%clk 00:20:52]} {[%emt 00:00:24]} 31.
Ke2 {[%clk 00:13:35]} {[%emt 00:05:19]} Nh5 {[%clk 00:20:58]} {[%emt 00:00:23]}
32. Kd2 {[%clk 00:12:16]} {[%emt 00:01:49]} Nf4 {[%clk 00:17:03]} {[%emt
00:04:26]} 33. Bf1 {[%clk 00:12:39]} {[%emt 00:00:06]} Kh7 {[%clk 00:12:53]}
{[%emt 00:04:40]} 34. Ne2 {[%clk 00:10:25]} {[%emt 00:02:44]} Ng6 {[%clk
00:11:44]} {[%emt 00:01:39]} 35. f4 {[%clk 00:09:08]} {[%emt 00:01:47]} f5
{[%clk 00:09:31]} {[%emt 00:02:42]} 36. fxe5 {[%clk 00:08:51]} {[%emt
00:00:47]} dxe5 {[%clk 00:09:05]} {[%emt 00:00:57]} 37. Nc5 {[%clk 00:08:52]}
{[%emt 00:00:29]} f4 {[%clk 00:07:27]} {[%emt 00:02:08]} 38. Nxe6 {[%clk
00:09:03]} {[%emt 00:00:19]} Qxe6 {[%clk 00:06:24]} {[%emt 00:01:33]} 39. Qc7+
{[%clk 00:09:18]} {[%emt 00:00:14]} Qf7 {[%clk 00:01:26]} {[%emt 00:05:28]} 40.
Qxf7+ {[%clk 00:09:07]} {[%emt 00:00:42]} Nxf7 {[%clk 00:01:50]} {[%emt
00:00:06]} 41. Bh3 {[%clk 00:09:00]} {[%emt 00:00:36]} f3 {[%clk 00:28:15]}
{[%emt 00:04:05]} 42. Ng1 {[%clk 00:38:13]} {[%emt 00:01:17]} Ng5 {[%clk
00:23:46]} {[%emt 00:04:59]} 43. Bf5 {[%clk 00:38:00]} {[%emt 00:00:42]} Kh6
{[%clk 00:20:13]} {[%emt 00:04:04]} 44. Ke3 {[%clk 00:35:41]} {[%emt 00:02:49]}
f2 {[%clk 00:14:43]} {[%emt 00:06:01]} 45. Ne2 {[%clk 00:32:21]} {[%emt
00:03:49]} Ne7 {[%clk 00:12:32]} {[%emt 00:02:41]} 46. Rh1 {[%clk 00:26:19]}
{[%emt 00:06:32]} Nxf5+ {[%clk 00:12:11]} {[%emt 00:00:51]} 47. exf5 {[%clk
00:26:45]} {[%emt 00:00:03]} Kg7 {[%clk 00:12:09]} {[%emt 00:00:32]} 48. Nf4
{[%clk 00:26:09]} {[%emt 00:01:06]} Kf7 {[%clk 00:08:28]} {[%emt 00:04:12]} 49.
Ng2 {[%clk 00:23:01]} {[%emt 00:03:37]} Bg3 {[%clk 00:08:32]} {[%emt 00:00:26]}
50. Ke2 {[%clk 00:21:29]} {[%emt 00:02:02]} e4 {[%clk 00:07:50]} {[%emt
00:01:14]} 51. d4 {[%clk 00:19:30]} {[%emt 00:02:29]} Nf3 {[%clk 00:06:09]}
{[%emt 00:02:11]} 52. d5 {[%clk 00:15:39]} {[%emt 00:04:20]} Nh2 {[%clk
00:05:18]} {[%emt 00:01:21]} 53. Ne3 {[%clk 00:14:24]} {[%emt 00:01:45]} cxd5
{[%clk 00:04:39]} {[%emt 00:01:10]} 54. cxd5 {[%clk 00:14:49]} {[%emt
00:00:05]} Rg8 {[%clk 00:03:50]} {[%emt 00:01:18]} 55. Bd4 {[%clk 00:13:33]}
{[%emt 00:01:46]} Nf3 {[%clk 00:03:29]} {[%emt 00:00:51]} 56. Rh7+ {[%clk
00:13:47]} {[%emt 00:00:15]} Ke8 {[%clk 00:03:40]} {[%emt 00:00:20]} 57. Bc5
{[%clk 00:13:53]} {[%emt 00:00:23]} Bh4 {[%clk 00:02:23]} {[%emt 00:01:48]} 58.
d6 {[%clk 00:13:16]} {[%emt 00:01:08]} Kd8 {[%clk 00:01:01]} {[%emt 00:01:53]}
59. Bb6+ {[%clk 00:13:00]} {[%emt 00:00:45]} Kc8 {[%clk 00:01:29]} 60. d7+
{[%clk 00:13:16]} {[%emt 00:00:14]} Kb8 {[%clk 00:01:58]} {[%emt 00:00:01]} 61.
Rxh4 {[%clk 00:13:35]} 1-0

[Event "Schack-SM 2024: Mastarklassen"]
[Site "Fortnox Arena, Hejaregatan 5, Vaxjo, Sweden"]
[Date "2024.07.06"]
[Round "8.2"]
[White "Muntean, Victor"]
[Black "Tuomainen, Felix"]
[Result "0-1"]
[TimeControl "90 minutes for 40 moves + 30 minutes for the rest of the game + 30 seconds per move from move one."]
[BlackTitle "FM"]
[WhiteElo "2136"]
[BlackElo "2255"]

1. e4 {[%clk 01:30:44]} {[%emt 00:00:16]} c6 {[%clk 01:29:24]} {[%emt
00:01:37]} 2. d4 {[%clk 01:31:06]} {[%emt 00:00:08]} d5 {[%clk 01:29:42]}
{[%emt 00:00:12]} 3. exd5 {[%clk 01:31:31]} {[%emt 00:00:05]} cxd5 {[%clk
01:30:06]} {[%emt 00:00:05]} 4. Bd3 {[%clk 01:31:56]} {[%emt 00:00:06]} Nc6
{[%clk 01:28:50]} {[%emt 00:01:46]} 5. c3 {[%clk 01:32:20]} {[%emt 00:00:05]}
Qc7 {[%clk 01:27:42]} {[%emt 00:01:38]} 6. h3 {[%clk 01:32:43]} {[%emt
00:00:08]} e6 {[%clk 01:27:44]} {[%emt 00:00:27]} 7. Nf3 {[%clk 01:32:32]}
{[%emt 00:00:42]} Bd6 {[%clk 01:27:55]} {[%emt 00:00:18]} 8. O-O {[%clk
01:32:42]} {[%emt 00:00:20]} Nge7 {[%clk 01:28:16]} {[%emt 00:00:09]} 9. Re1
{[%clk 01:30:40]} {[%emt 00:02:32]} O-O {[%clk 01:28:38]} {[%emt 00:00:08]} 10.
Bxh7+ {[%clk 01:24:22]} {[%emt 00:06:48]} Kxh7 {[%clk 01:28:16]} {[%emt
00:00:51]} 11. Ng5+ {[%clk 01:24:47]} {[%emt 00:00:07]} Kg6 {[%clk 01:27:50]}
{[%emt 00:00:54]} 12. Qg4 {[%clk 01:23:30]} {[%emt 00:01:48]} f5 {[%clk
01:25:00]} {[%emt 00:03:20]} 13. Qh4 {[%clk 01:23:47]} {[%emt 00:00:13]} Bd7
{[%clk 01:22:56]} {[%emt 00:02:34]} 14. Qh7+ {[%clk 01:16:48]} {[%emt
00:07:29]} Kf6 {[%clk 01:22:49]} {[%emt 00:00:36]} 15. Qh5 {[%clk 01:17:10]}
{[%emt 00:00:07]} g6 {[%clk 01:16:44]} {[%emt 00:06:36]} 16. Qh4 {[%clk
01:11:29]} {[%emt 00:06:11]} Rh8 {[%clk 01:05:10]} {[%emt 00:12:01]} 17. Nh7+
{[%clk 01:11:40]} {[%emt 00:00:23]} Kg7 {[%clk 01:05:07]} {[%emt 00:00:28]} 18.
Qh6+ {[%clk 00:41:17]} {[%emt 00:30:57]} Kg8 {[%clk 01:01:51]} {[%emt
00:03:42]} 19. Nf6+ {[%clk 00:41:36]} {[%emt 00:00:16]} Kf7 {[%clk 01:02:02]}
{[%emt 00:00:15]} 20. Nh7 {[%clk 00:41:52]} {[%emt 00:00:17]} f4 {[%clk
00:57:19]} {[%emt 00:05:13]} 21. Nd2 {[%clk 00:37:41]} {[%emt 00:04:41]} Rag8
{[%clk 00:45:25]} {[%emt 00:12:22]} 22. Qh4 {[%clk 00:32:59]} {[%emt 00:05:14]}
Kg7 {[%clk 00:39:56]} {[%emt 00:05:56]} 0-1

[Event "Schack-SM 2024: Mastarklassen"]
[Site "Fortnox Arena, Hejaregatan 5, Vaxjo, Sweden"]
[Date "2024.07.06"]
[Round "8.3"]
[White "Landgren, Andreas"]
[Black "Mardell, Jimmy"]
[Result "1-0"]
[TimeControl "90 minutes for 40 moves + 30 minutes for the rest of the game + 30 seconds per move from move one."]
[WhiteTitle "FM"]
[WhiteElo "2243"]
[BlackElo "2186"]

1. d4 {[%clk 01:30:58]} {[%emt 00:00:02]} d5 {[%clk 01:30:39]} {[%emt
00:00:22]} 2. c4 {[%clk 01:31:22]} {[%emt 00:00:07]} c6 {[%clk 01:31:04]}
{[%emt 00:00:04]} 3. Nf3 {[%clk 01:31:44]} {[%emt 00:00:08]} Nf6 {[%clk
01:31:21]} {[%emt 00:00:12]} 4. Nc3 {[%clk 01:32:06]} {[%emt 00:00:08]} e6
{[%clk 01:31:37]} {[%emt 00:00:15]} 5. Bg5 {[%clk 01:32:27]} {[%emt 00:00:08]}
h6 {[%clk 01:31:54]} {[%emt 00:00:13]} 6. Bh4 {[%clk 01:32:48]} {[%emt
00:00:09]} Nbd7 {[%clk 01:31:31]} {[%emt 00:00:54]} 7. e3 {[%clk 01:32:20]}
{[%emt 00:00:57]} Be7 {[%clk 01:31:55]} {[%emt 00:00:06]} 8. Qc2 {[%clk
01:26:00]} {[%emt 00:06:50]} O-O {[%clk 01:30:38]} {[%emt 00:01:47]} 9. Bd3
{[%clk 01:25:31]} {[%emt 00:01:00]} dxc4 {[%clk 01:29:55]} {[%emt 00:01:13]} 10.
Bxc4 {[%clk 01:25:52]} {[%emt 00:00:07]} b5 {[%clk 01:30:16]} {[%emt 00:00:09]}
11. Be2 {[%clk 01:07:54]} {[%emt 00:18:27]} Bb7 {[%clk 01:24:09]} {[%emt
00:06:39]} 12. O-O {[%clk 01:06:17]} {[%emt 00:02:05]} b4 {[%clk 01:10:17]}
{[%emt 00:14:22]} 13. Na4 {[%clk 01:03:20]} {[%emt 00:03:28]} c5 {[%clk
01:06:55]} {[%emt 00:03:52]} 14. Nxc5 {[%clk 00:46:40]} {[%emt 00:17:10]} Nxc5
{[%clk 01:07:03]} {[%emt 00:00:21]} 15. dxc5 {[%clk 00:47:03]} {[%emt
00:00:06]} Rc8 {[%clk 01:00:15]} {[%emt 00:07:18]} 16. Rfd1 {[%clk 00:40:21]}
{[%emt 00:07:13]} Qa5 {[%clk 00:51:05]} {[%emt 00:09:40]} 17. Nd2 {[%clk
00:37:49]} {[%emt 00:03:01]} Rxc5 {[%clk 00:48:57]} {[%emt 00:02:38]} 18. Nc4
{[%clk 00:32:31]} {[%emt 00:05:49]} Qc7 {[%clk 00:47:50]} {[%emt 00:01:37]} 19.
b3 {[%clk 00:30:50]} {[%emt 00:02:10]} Ne4 {[%clk 00:39:12]} {[%emt 00:09:08]}
20. Bg3 {[%clk 00:24:45]} {[%emt 00:06:37]} Nxg3 {[%clk 00:38:07]} {[%emt
00:01:35]} 21. hxg3 {[%clk 00:25:06]} {[%emt 00:00:09]} Bf6 {[%clk 00:33:42]}
{[%emt 00:04:55]} 22. Rac1 {[%clk 00:25:21]} {[%emt 00:00:14]} a5 {[%clk
00:34:04]} {[%emt 00:00:09]} 23. Bd3 {[%clk 00:09:02]} {[%emt 00:16:49]} Rc8
{[%clk 00:28:56]} {[%emt 00:05:37]} 24. Be2 {[%clk 00:07:44]} {[%emt 00:01:49]}
h5 {[%clk 00:24:38]} {[%emt 00:04:48]} 25. Rd2 {[%clk 00:05:35]} {[%emt
00:02:38]} g6 {[%clk 00:22:28]} {[%emt 00:02:41]} 26. Qd1 {[%clk 00:05:08]}
{[%emt 00:00:56]} Bd5 {[%clk 00:19:01]} {[%emt 00:03:57]} 27. Bd3 {[%clk
00:05:01]} {[%emt 00:00:39]} Qb7 {[%clk 00:17:17]} {[%emt 00:02:14]} 28. Rdc2
{[%clk 00:04:20]} {[%emt 00:01:11]} Qc7 {[%clk 00:09:02]} {[%emt 00:08:44]} 29.
Qe2 {[%clk 00:04:04]} {[%emt 00:00:47]} Bc3 {[%clk 00:07:43]} {[%emt 00:01:50]}
30. e4 {[%clk 00:03:31]} {[%emt 00:01:03]} Bxc4 {[%clk 00:07:08]} {[%emt
00:01:05]} 31. Bxc4 {[%clk 00:03:52]} {[%emt 00:00:09]} a4 {[%clk 00:06:31]}
{[%emt 00:01:06]} 32. Rd1 {[%clk 00:03:41]} {[%emt 00:00:40]} Rd8 {[%clk
00:04:21]} {[%emt 00:02:41]} 33. Rcc1 {[%clk 00:03:37]} {[%emt 00:00:34]} a3
{[%clk 00:04:12]} {[%emt 00:00:40]} 34. Rxd8+ {[%clk 00:03:32]} {[%emt
00:00:34]} Qxd8 {[%clk 00:04:38]} {[%emt 00:00:04]} 35. Rd1 {[%clk 00:03:56]}
{[%emt 00:00:06]} Bd4 {[%clk 00:02:27]} {[%emt 00:02:41]} 36. Rd3 {[%clk
00:03:55]} {[%emt 00:00:30]} Kg7 {[%clk 00:01:38]} {[%emt 00:01:19]} 37. Qd2
{[%clk 00:04:07]} {[%emt 00:00:18]} e5 {[%clk 00:02:02]} {[%emt 00:00:06]} 38.
Qxb4 {[%clk 00:04:24]} {[%emt 00:00:14]} Ra5 {[%clk 00:00:38]} {[%emt
00:01:53]} 39. Rf3 {[%clk 00:03:34]} {[%emt 00:01:20]} Ra7 {[%clk 00:00:53]}
{[%emt 00:00:15]} 40. Bd5 {[%clk 00:02:35]} {[%emt 00:01:29]} Qg5 {[%clk
00:00:46]} {[%emt 00:00:37]} 41. Qc4 {[%clk 00:02:17]} {[%emt 00:00:48]} h4
{[%clk 00:19:49]} {[%emt 00:11:27]} 42. gxh4 {[%clk 00:26:27]} {[%emt
00:06:20]} Qxh4 {[%clk 00:12:30]} {[%emt 00:07:49]} 43. Bxf7 {[%clk 00:21:11]}
{[%emt 00:05:46]} Rd7 {[%clk 00:05:53]} {[%emt 00:07:08]} 44. Bd5 {[%clk
00:20:15]} {[%emt 00:01:26]} Qd8 {[%clk 00:05:46]} {[%emt 00:00:36]} 45. Qa6
{[%clk 00:17:17]} {[%emt 00:03:28]} Rc7 {[%clk 00:04:02]} {[%emt 00:02:14]} 46.
Qxa3 {[%emt 00:02:44]} Ra7 {[%clk 00:03:26]} 47. Qb4 {[%clk 00:08:51]} {[%emt
00:07:48]} Qg5 {[%clk 00:03:52]} {[%emt 00:00:05]} 48. Qf8+ {[%clk 00:09:09]}
{[%emt 00:00:12]} 1-0

[Event "Schack-SM 2024: Mastarklassen"]
[Site "Fortnox Arena, Hejaregatan 5, Vaxjo, Sweden"]
[Date "2024.07.06"]
[Round "8.4"]
[White "Nygren, David"]
[Black "Collett, Peter"]
[Result "1/2-1/2"]
[TimeControl "90 minutes for 40 moves + 30 minutes for the rest of the game + 30 seconds per move from move one."]
[BlackTitle "CM"]
[WhiteElo "2132"]
[BlackElo "2116"]

1. e4 {[%clk 01:30:55]} {[%emt 00:00:05]} e5 {[%clk 01:28:16]} {[%emt
00:02:44]} 2. Nf3 {[%clk 01:31:13]} {[%emt 00:00:13]} Nc6 {[%clk 01:28:30]}
{[%emt 00:00:16]} 3. Bb5 {[%clk 01:31:20]} {[%emt 00:00:22]} a6 {[%clk
01:28:41]} {[%emt 00:00:18]} 4. Ba4 {[%clk 01:31:39]} {[%emt 00:00:12]} Nf6
{[%clk 01:29:01]} {[%emt 00:00:10]} 5. Bxc6 {[%clk 01:31:55]} {[%emt 00:00:14]}
dxc6 {[%clk 01:29:13]} {[%emt 00:00:18]} 6. d3 {[%clk 01:32:18]} {[%emt
00:00:07]} Nd7 {[%clk 01:22:15]} {[%emt 00:07:27]} 7. Nbd2 {[%clk 01:31:48]}
{[%emt 00:01:01]} Bd6 {[%clk 01:19:26]} {[%emt 00:03:18]} 8. Nc4 {[%clk
01:29:50]} {[%emt 00:02:30]} f6 {[%clk 01:18:29]} {[%emt 00:01:25]} 9. Qe2
{[%clk 01:27:20]} {[%emt 00:02:59]} c5 {[%clk 01:16:34]} {[%emt 00:02:27]} 10.
Bd2 {[%clk 01:25:52]} {[%emt 00:01:58]} Nf8 {[%clk 01:15:31]} {[%emt 00:01:32]}
11. Nh4 {[%clk 01:23:13]} {[%emt 00:03:08]} g6 {[%clk 01:14:52]} {[%emt
00:01:11]} 12. Bh6 {[%clk 01:13:36]} {[%emt 00:10:06]} Qe7 {[%clk 01:06:53]}
{[%emt 00:08:30]} 13. g4 {[%clk 01:05:39]} {[%emt 00:08:27]} Ne6 {[%clk
01:00:02]} {[%emt 00:07:21]} 14. Ng2 {[%clk 01:00:58]} {[%emt 00:05:10]} Nf4
{[%clk 00:46:08]} {[%emt 00:14:24]} 15. Nxf4 {[%clk 00:54:12]} {[%emt
00:07:17]} exf4 {[%clk 00:46:30]} {[%emt 00:00:08]} 16. g5 {[%clk 00:53:03]}
{[%emt 00:01:40]} Be5 {[%clk 00:43:34]} {[%emt 00:03:24]} 17. Rg1 {[%clk
00:50:30]} {[%emt 00:03:04]} Be6 {[%clk 00:39:32]} {[%emt 00:04:32]} 18. gxf6
{[%clk 00:45:59]} {[%emt 00:05:02]} Qxf6 {[%clk 00:39:41]} {[%emt 00:00:22]} 19.
Nxe5 {[%clk 00:36:01]} {[%emt 00:10:27]} Qxe5 {[%clk 00:38:48]} {[%emt
00:01:21]} 20. O-O-O {[%clk 00:35:35]} {[%emt 00:00:57]} O-O-O {[%clk
00:38:23]} {[%emt 00:00:54]} 21. Qd2 {[%clk 00:31:21]} {[%emt 00:04:44]} g5
{[%clk 00:29:07]} {[%emt 00:09:45]} 22. Bxg5 {[%clk 00:28:28]} {[%emt
00:03:24]} Rdf8 {[%clk 00:29:27]} {[%emt 00:00:10]} 23. Qa5 {[%clk 00:19:24]}
{[%emt 00:09:34]} Bd7 {[%clk 00:24:38]} {[%emt 00:05:18]} 24. f3 {[%clk
00:15:56]} {[%emt 00:03:59]} h6 {[%clk 00:14:53]} {[%emt 00:10:15]} 25. d4
{[%clk 00:14:07]} {[%emt 00:02:19]} Qe8 {[%clk 00:12:59]} {[%emt 00:02:25]} 26.
Bh4 {[%clk 00:13:51]} {[%emt 00:00:45]} Bb5 {[%clk 00:07:49]} {[%emt 00:05:39]}
27. dxc5 {[%clk 00:11:43]} {[%emt 00:02:39]} Qh5 {[%clk 00:07:52]} {[%emt
00:00:25]} 28. Rg7 {[%clk 00:08:26]} {[%emt 00:03:48]} Qxc5 {[%clk 00:07:40]}
{[%emt 00:00:42]} 29. Rd5 {[%clk 00:03:46]} {[%emt 00:05:10]} Qe3+ {[%clk
00:07:07]} {[%emt 00:01:02]} 30. Kb1 {[%clk 00:03:13]} {[%emt 00:01:04]} b6
{[%clk 00:06:24]} {[%emt 00:01:12]} 31. Qb4 {[%clk 00:02:21]} {[%emt 00:01:22]}
Rhg8 {[%clk 00:05:44]} {[%emt 00:01:09]} 32. a4 {[%clk 00:01:35]} {[%emt
00:01:17]} c5 {[%clk 00:05:24]} {[%emt 00:00:49]} 33. Rxg8 {[%clk 00:01:26]}
{[%emt 00:00:38]} Rxg8 {[%clk 00:05:42]} {[%emt 00:00:13]} 34. Qd2 {[%clk
00:00:38]} {[%emt 00:01:17]} Rg1+ {[%clk 00:02:36]} {[%emt 00:03:35]} 35. Ka2
{[%clk 00:01:05]} {[%emt 00:00:05]} Bc4+ {[%clk 00:02:29]} {[%emt 00:00:36]} 36.
b3 {[%clk 00:01:33]} {[%emt 00:00:02]} Bxd5 {[%clk 00:02:15]} {[%emt 00:00:43]}
37. Qxd5 {[%clk 00:01:58]} {[%emt 00:00:05]} Qd4 {[%clk 00:01:59]} {[%emt
00:00:47]} 38. Qc6+ {[%clk 00:01:53]} {[%emt 00:00:34]} Kb8 {[%clk 00:02:19]}
{[%emt 00:00:10]} 39. Qxb6+ {[%clk 00:01:58]} {[%emt 00:00:25]} Kc8 {[%clk
00:02:02]} {[%emt 00:00:47]} 40. Qc6+ {[%clk 00:01:03]} {[%emt 00:01:26]} Kb8
{[%clk 00:02:23]} {[%emt 00:00:08]} 41. Qb6+ {[%clk 00:01:18]} {[%emt
00:00:15]} Kc8 {[%clk 00:02:46]} {[%emt 00:00:06]} 42. Qxa6+ {[%clk 00:29:29]}
{[%emt 00:02:19]} Kb8 {[%clk 00:32:34]} {[%emt 00:00:43]} 43. Qb5+ {[%clk
00:27:52]} {[%emt 00:02:08]} Kc8 {[%clk 00:32:42]} {[%emt 00:00:20]} 44. Qc6+
{[%clk 00:18:46]} {[%emt 00:09:36]} Kb8 {[%clk 00:32:15]} {[%emt 00:00:57]} 45.
Qe8+ {[%clk 00:18:37]} {[%emt 00:00:39]} Kc7 {[%clk 00:29:57]} {[%emt
00:02:49]} 46. Qe7+ {[%clk 00:17:48]} {[%emt 00:01:20]} Kc6 {[%clk 00:27:36]}
{[%emt 00:02:52]} 47. Qe8+ {[%clk 00:15:57]} {[%emt 00:02:19]} Kc7 {[%clk
00:24:43]} {[%emt 00:03:25]} 48. Qe7+ {[%clk 00:15:02]} {[%emt 00:01:25]} Kc6
{[%clk 00:24:57]} {[%emt 00:00:16]} 49. Qe8+ {[%clk 00:13:43]} {[%emt
00:01:50]} Kc7 {[%clk 00:25:15]} {[%emt 00:00:11]} 50. Qe7+ {[%clk 00:13:19]}
{[%emt 00:00:05]} 1/2-1/2